fUSD/lending_fUSD_20250623
["ID","MTS","AMOUNT","RATE_DAILY","PERIOD"]
[367154115,1750676262752,374.98,0.00020042,2]
[367154116,1750676262963,374.98,0.00020047,2]
[367154117,1750676263169,374.98,0.00020052,2]
[367154118,1750676263374,374.98,0.00020057,2]
[367154119,1750676263575,374.98,0.00020063,2]
[367154120,1750676263773,374.98,0.00020068,2]
[367154121,1750676263968,374.98,0.00020073,2]
[367154122,1750676264167,374.98,0.00020078,2]
[367154123,1750676264396,374.98,0.00020084,2]
[367154124,1750676264799,374.98,0.00020089,2]
[367154125,1750676264996,374.98,0.00020094,2]
[367154126,1750676265197,374.98,0.00020099,2]
[367154129,1750676334984,532.0,0.00027397,120]
[367154132,1750676411692,205.0,0.00019458,2]
[367154134,1750676512594,150.0,0.00019715,2]
[367154136,1750676519836,227.27,0.00013699,2]
[367154138,1750676583942,200.0,0.00019691,7]
[367154140,1750676613926,331.68,0.0001969,2]
[367154141,1750676614557,331.68,0.00027073,120]
[367154142,1750676627345,298.1313428,0.00020031,2]
[367154145,1750676693827,388.57,0.00019616,2]
[367154146,1750676744423,5512.68,0.00019623,2]
[367154147,1750676745608,694.63093321,0.00019623,2]
[367154148,1750676745632,785.47906679,0.00019623,2]
[367154151,1750676767222,335.936423,0.00020004,2]
[367154161,1750676845053,-151.0,0.00020105,2]
[367154162,1750676845158,-229.43869516,0.00020105,2]
[367154163,1750676847834,-145.54130484,0.00020105,2]
[367154164,1750676847857,-151.78869516,0.0002011,2]
[367154165,1750676871220,250.0,0.00019654,2]
[367154166,1750676890021,733.4,0.00019738,2]
[367154169,1750676929593,-151.78869516,0.00020102,2]
[367154170,1750676932076,1115.52,0.00019711,2]
[367154171,1750676933350,-151.0,0.00020102,2]
[367154174,1750676948293,-229.43869516,0.00020101,2]
[367154176,1750676959021,220.2,0.00019677,2]
[367154179,1750676963446,-70.56130484,0.00020101,2]
[367154180,1750676963469,-226.76869516,0.00020101,2]
[367154182,1750676979441,-151.0,0.00020101,2]
[367154184,1750676999955,600.0,0.000201,2]
[367154187,1750677023402,1000.0,0.00019678,2]
[367154198,1750677031784,-460.23130484,0.00020101,2]
[367154199,1750677031794,-2.39620858,0.00020101,2]
[367154200,1750677031895,-1197.60379142,0.00020101,2]
[367154201,1750677031905,-2376.63739139,0.00020101,2]
[367154202,1750677031916,-2456.90583993,0.00020101,2]
[367154203,1750677031951,-585.11857813,0.00020101,2]
[367154204,1750677032048,-4223.25784566,0.00020101,2]
[367154205,1750677032103,-500.0,0.00020101,2]
[367154237,1750677037697,-500.0,0.00020101,2]
[367154238,1750677037707,-82.02494578,0.00020101,2]
[367154239,1750677037906,-417.97505422,0.00020101,2]
[367154240,1750677037916,-500.0,0.00020101,2]
[367154241,1750677037926,-500.0,0.00020101,2]
[367154242,1750677037936,-16322.58292499,0.00020101,2]
[367154243,1750677037946,-358280.03388334,0.00020102,2]
[367154244,1750677037956,-34323.1298012,0.00020102,2]
[367154245,1750677037966,-302.78869544,0.00020102,2]
[367154246,1750677037976,-223.19130484,0.0002011,2]
[367154247,1750677037985,-374.98,0.00020115,2]
[367154248,1750677037995,-374.98,0.00020121,2]
[367154249,1750677038004,-374.98,0.00020126,2]
[367154250,1750677038014,-374.98,0.00020131,2]
[367154251,1750677038024,-374.98,0.00020136,2]
[367154252,1750677038033,-253.77641127,0.00020182,2]
[367154253,1750677038043,-227.27,0.00020187,2]
[367154254,1750677038053,-150.0,0.00020197,3]
[367154255,1750677038064,-1547.75,0.00020197,2]
[367154256,1750677038073,-204.0,0.00020221,2]
[367154257,1750677038083,-300.0,0.00020238,2]
[367154258,1750677038092,-167.15,0.0002024,2]
[367154259,1750677038102,-20818.11,0.00020241,2]
[367154260,1750677038112,-2751.0,0.00020282,2]
[367154261,1750677038121,-666.95607974,0.00020323,2]
[367154262,1750677038131,-506.24,0.00020326,2]
[367154263,1750677038141,-151.0,0.00020395,2]
[367154264,1750677038151,-5446.62532203,0.00020397,2]
[367154265,1750677038161,-467.70051204,0.00020406,2]
[367154266,1750677038170,-23890.0,0.00020407,2]
[367154267,1750677038180,-151.0,0.00020407,2]
[367154268,1750677038189,-151.0,0.00020407,2]
[367154269,1750677038199,-151.0,0.00020407,2]
[367154270,1750677038208,-151.0,0.00020407,2]
[367154271,1750677038218,-151.0,0.00020407,2]
[367154272,1750677038228,-151.0,0.00020407,2]
[367154274,1750677038238,-151.0,0.00020407,2]
[367154275,1750677038247,-151.0,0.00020407,2]
[367154277,1750677038256,-151.0,0.0002045,2]
[367154279,1750677038267,-151.0,0.00020505,2]
[367154281,1750677038276,-600.0,0.00020555,2]
[367154283,1750677038286,-419.48900013,0.00020555,2]
[367154285,1750677038295,-151.0,0.0002056,2]
[367154287,1750677038304,-666.95607974,0.00020598,2]
[367154288,1750677038314,-171.56654567,0.00020615,2]
[367154289,1750677038324,-2500.0,0.0002064,2]
[367154290,1750677038333,-1000.0,0.0002069,2]
[367154291,1750677038343,-150.0,0.00020691,2]
[367154292,1750677038353,-150.0,0.00020691,2]
[367154293,1750677038364,-150.0,0.00020692,2]
[367154294,1750677038374,-150.0,0.00020695,2]
[367154295,1750677038383,-1000.0,0.00020696,2]
[367154296,1750677038394,-150.0,0.00020697,2]
[367154297,1750677038404,-256.48192745,0.00020697,2]
[367154298,1750677038414,-150.0,0.000207,2]
[367154299,1750677038423,-150.0,0.00020703,2]
[367154300,1750677038433,-150.0,0.00020704,2]
[367154301,1750677038443,-150.0,0.00020707,2]
[367154302,1750677038452,-150.0,0.00020708,2]
[367154303,1750677038462,-150.0,0.00020712,2]
[367154304,1750677038471,-1000.0,0.00020713,2]
[367154305,1750677038482,-150.0,0.00020714,2]
[367154306,1750677038492,-150.0,0.00020717,2]
[367154307,1750677038502,-1000.0,0.00020718,2]
[367154308,1750677038512,-150.0,0.00020725,2]
[367154309,1750677038521,-1000.0,0.00020727,2]
[367154310,1750677038531,-150.0,0.00020727,2]
[367154311,1750677038541,-150.0,0.00020728,2]
[367154312,1750677038550,-1000.0,0.00020731,2]
[367154313,1750677038560,-150.0,0.00020731,2]
[367154314,1750677038570,-1000.0,0.00020734,2]
[367154315,1750677038579,-150.0,0.00020735,2]
[367154316,1750677038590,-150.0,0.00020737,2]
[367154317,1750677038600,-380.43869516,0.00020738,2]
[367154318,1750677038609,-1000.0,0.00020739,2]
[367154319,1750677038619,-150.0,0.00020741,2]
[367154320,1750677038628,-1000.0,0.00020742,2]
[367154321,1750677038640,-1000.0,0.00020743,2]
[367154322,1750677038649,-150.0,0.00020747,2]
[367154323,1750677038983,-150.0,0.00020747,2]
[367154324,1750677038993,-150.0,0.00020747,2]
[367154325,1750677039002,-150.0,0.00020749,2]
[367154326,1750677039011,-1000.0,0.00020754,2]
[367154327,1750677039021,-150.0,0.00020755,2]
[367154328,1750677039030,-150.0,0.00020759,2]
[367154329,1750677039038,-150.0,0.00020761,2]
[367154330,1750677039048,-150.0,0.00020761,2]
[367154331,1750677039057,-150.0,0.00020763,2]
[367154332,1750677039066,-150.0,0.00020763,2]
[367154333,1750677039075,-1000.0,0.00020764,2]
[367154334,1750677039085,-150.0,0.00020767,2]
[367154335,1750677039094,-1000.0,0.00020768,2]
[367154336,1750677039103,-150.0,0.0002077,2]
[367154337,1750677039112,-1000.0,0.00020773,2]
[367154338,1750677039121,-675.14108318,0.00020778,2]
[367154339,1750677039130,-150.0,0.00020778,2]
[367154340,1750677039139,-150.0,0.00020779,2]
[367154341,1750677039149,-150.0,0.00020779,2]
[367154342,1750677039158,-779.80344,0.0002078,2]
[367154343,1750677039167,-150.0,0.00020781,2]
[367154344,1750677039177,-150.0,0.00020784,2]
[367154345,1750677039186,-150.0,0.00020789,2]
[367154346,1750677039196,-150.0,0.00020791,2]
[367154347,1750677039205,-150.0,0.00020793,2]
[367154348,1750677039215,-150.0,0.00020797,2]
[367154349,1750677039224,-150.0,0.00020797,2]
[367154350,1750677039233,-1000.0,0.00020805,2]
[367154351,1750677039243,-150.0,0.00020806,2]
[367154352,1750677039252,-1000.0,0.00020806,2]
[367154353,1750677039263,-150.0,0.00020807,2]
[367154354,1750677039272,-150.0,0.00020808,2]
[367154355,1750677039283,-150.0,0.00020808,2]
[367154356,1750677039293,-150.0,0.00020813,2]
[367154357,1750677039302,-150.0,0.00020816,2]
[367154358,1750677039311,-151.0,0.00020816,2]
[367154359,1750677039321,-231.567858,0.00020816,2]
[367154360,1750677039330,-152.497202,0.00020816,2]
[367154361,1750677039339,-151.0,0.00020816,2]
[367154362,1750677039348,-151.0,0.00020816,2]
[367154363,1750677039359,-187.919547,0.00020816,2]
[367154364,1750677039368,-301.999999,0.00020816,2]
[367154365,1750677039377,-151.0,0.00020816,2]
[367154366,1750677039387,-150.0,0.00020819,2]
[367154367,1750677039401,-150.0,0.00020823,2]
[367154368,1750677039410,-150.0,0.00020824,2]
[367154369,1750677039419,-150.0,0.00020827,2]
[367154370,1750677039429,-150.0,0.00020827,2]
[367154371,1750677039438,-779.80344,0.0002083,2]
[367154372,1750677039447,-150.0,0.00020832,2]
[367154373,1750677039456,-150.0,0.00020834,2]
[367154374,1750677039466,-1000.0,0.00020835,2]
[367154375,1750677039475,-150.0,0.00020836,2]
[367154377,1750677039485,-150.0,0.0002084,2]
[367154378,1750677039494,-1000.0,0.00020841,2]
[367154379,1750677039503,-150.0,0.00020842,2]
[367154380,1750677039514,-150.0,0.00020842,2]
[367154381,1750677039523,-150.0,0.00020842,2]
[367154382,1750677039533,-150.0,0.00020844,2]
[367154383,1750677039543,-150.0,0.00020845,2]
[367154384,1750677039553,-150.0,0.00020846,2]
[367154385,1750677039562,-1000.0,0.00020846,2]
[367154386,1750677039572,-1000.0,0.00020847,2]
[367154387,1750677039581,-150.0,0.00020849,2]
[367154388,1750677039591,-150.0,0.00020852,2]
[367154389,1750677039600,-150.0,0.00020854,2]
[367154390,1750677039610,-150.0,0.00020854,2]
[367154391,1750677039619,-150.0,0.00020855,2]
[367154392,1750677039628,-150.0,0.00020857,2]
[367154393,1750677039642,-150.0,0.00020857,2]
[367154394,1750677039651,-150.0,0.00020858,2]
[367154396,1750677039661,-1000.0,0.00020861,2]
[367154398,1750677039671,-150.0,0.00020861,2]
[367154400,1750677039682,-150.0,0.00020862,2]
[367154402,1750677039691,-150.0,0.00020862,2]
[367154404,1750677039701,-150.0,0.00020863,2]
[367154405,1750677039712,-150.0,0.00020865,2]
[367154406,1750677039722,-150.0,0.00020866,2]
[367154407,1750677039731,-150.0,0.00020867,2]
[367154408,1750677039741,-150.0,0.00020867,2]
[367154409,1750677039751,-150.0,0.00020869,2]
[367154410,1750677039760,-150.0,0.0002087,2]
[367154411,1750677039770,-150.0,0.00020872,2]
[367154412,1750677039780,-150.0,0.00020874,2]
[367154413,1750677039790,-150.0,0.00020874,2]
[367154414,1750677039800,-395.63697518,0.00020875,2]
[367154415,1750677039809,-150.0,0.00020875,2]
[367154416,1750677039819,-4504.08160692,0.00020877,2]
[367154417,1750677039828,-150.0,0.00020877,2]
[367154418,1750677039838,-150.0,0.00020878,2]
[367154419,1750677039847,-150.0,0.00020878,2]
[367154420,1750677039857,-1000.0,0.00020881,2]
[367154421,1750677039866,-1000.0,0.00020885,2]
[367154422,1750677039875,-150.0,0.00020887,2]
[367154423,1750677039886,-1000.0,0.00020887,2]
[367154424,1750677039896,-1000.0,0.00020888,2]
[367154425,1750677039906,-150.0,0.00020888,2]
[367154426,1750677039916,-1000.0,0.00020889,2]
[367154427,1750677039925,-779.80345,0.0002089,2]
[367154428,1750677039935,-150.0,0.00020891,2]
[367154429,1750677039945,-1000.0,0.00020892,2]
[367154430,1750677039955,-150.0,0.00020895,2]
[367154431,1750677039965,-150.0,0.00020898,2]
[367154432,1750677039975,-1000.0,0.00020899,2]
[367154433,1750677039985,-1000.0,0.00020899,2]
[367154434,1750677039994,-150.0,0.000209,2]
[367154435,1750677040005,-150.0,0.00020901,2]
[367154436,1750677040015,-150.0,0.00020903,2]
[367154437,1750677040025,-500.0,0.00020904,2]
[367154438,1750677040034,-1000.0,0.00020906,2]
[367154439,1750677040043,-150.0,0.00020907,2]
[367154440,1750677040053,-1000.0,0.00020907,2]
[367154441,1750677040064,-1000.0,0.00020907,2]
[367154442,1750677040073,-151.0,0.00020907,2]
[367154443,1750677040082,-151.0,0.00020907,2]
[367154444,1750677040092,-236.985107,0.00020907,2]
[367154445,1750677040102,-151.0,0.00020907,2]
[367154446,1750677040111,-150.0,0.00020915,2]
[367154447,1750677040120,-150.0,0.00020917,2]
[367154448,1750677040130,-1000.0,0.00020924,2]
[367154449,1750677040139,-150.0,0.00020925,2]
[367154450,1750677040148,-150.0,0.00020931,2]
[367154451,1750677040158,-1000.0,0.00020933,2]
[367154452,1750677040168,-1000.0,0.00020934,2]
[367154453,1750677040178,-150.0,0.00020934,2]
[367154454,1750677040187,-150.0,0.00020935,2]
[367154455,1750677040196,-150.0,0.00020937,2]
[367154456,1750677040206,-150.0,0.00020938,2]
[367154457,1750677040216,-150.0,0.00020939,2]
[367154458,1750677040225,-1000.0,0.00020942,2]
[367154459,1750677040235,-1000.0,0.00020943,2]
[367154460,1750677040244,-150.0,0.00020944,2]
[367154461,1750677040254,-150.0,0.00020946,2]
[367154462,1750677040264,-150.0,0.0002095,2]
[367154463,1750677040273,-1000.0,0.00020953,2]
[367154464,1750677040283,-150.0,0.00020954,2]
[367154465,1750677040292,-150.0,0.00020955,2]
[367154466,1750677040302,-150.0,0.00020956,2]
[367154467,1750677040311,-150.0,0.00020958,2]
[367154468,1750677040321,-1000.0,0.0002096,2]
[367154469,1750677040331,-151.0,0.00020964,2]
[367154470,1750677040341,-232.970576,0.00020964,2]
[367154471,1750677040351,-151.0,0.00020964,2]
[367154472,1750677040361,-151.0,0.00020964,2]
[367154473,1750677040371,-151.0,0.00020964,2]
[367154476,1750677040390,-151.324371,0.00020964,2]
[367154478,1750677040401,-151.0,0.00020964,2]
[367154480,1750677040411,-350.0,0.00020964,2]
[367154481,1750677040421,-151.0,0.00020977,2]
[367154482,1750677040432,-151.0,0.00020977,2]
[367154483,1750677040442,-155.38927,0.00020977,2]
[367154484,1750677040451,-151.0,0.00020977,2]
[367154485,1750677040461,-151.0,0.00020977,2]
[367154486,1750677040471,-151.50261,0.00020977,2]
[367154487,1750677040481,-151.0,0.00020977,2]
[367154488,1750677040491,-151.0,0.00020977,2]
[367154489,1750677040501,-151.0,0.00020977,2]
[367154490,1750677040511,-151.0,0.00020977,2]
[367154491,1750677040521,-151.0,0.00020977,2]
[367154492,1750677040531,-151.0,0.00020977,2]
[367154493,1750677040542,-151.848578,0.00020977,2]
[367154494,1750677040555,-151.0,0.00020977,2]
[367154495,1750677040565,-152.234498,0.00020977,2]
[367154496,1750677040574,-553.126101,0.00020977,2]
[367154497,1750677040584,-151.0,0.00020977,2]
[367154498,1750677040594,-151.0,0.00020977,2]
[367154499,1750677040604,-151.0,0.00020977,2]
[367154500,1750677040613,-151.0,0.00020977,2]
[367154501,1750677040623,-151.0,0.00020977,2]
[367154502,1750677040634,-266.788178,0.00020977,2]
[367154503,1750677040645,-151.0,0.00020977,2]
[367154504,1750677040655,-266.788178,0.00020977,2]
[367154505,1750677040665,-160.649019,0.00020977,2]
[367154506,1750677040674,-160.649019,0.00020977,2]
[367154507,1750677040684,-151.0,0.00020977,2]
[367154508,1750677040694,-151.0,0.00020977,2]
[367154509,1750677040704,-151.0,0.00020977,2]
[367154510,1750677040714,-154.174228,0.00020977,2]
[367154511,1750677040724,-151.0,0.00020977,2]
[367154512,1750677040734,-176.746423,0.00020977,2]
[367154513,1750677040744,-176.746423,0.00020977,2]
[367154514,1750677040754,-151.0,0.00020977,2]
[367154515,1750677040763,-199.512274,0.00020977,2]
[367154516,1750677040773,-152.049501,0.00020977,2]
[367154517,1750677040783,-10834.136721,0.00020977,2]
[367154518,1750677040793,-151.0,0.00020977,2]
[367154519,1750677040803,-151.0,0.00020977,2]
[367154520,1750677040812,-151.0,0.00020977,2]
[367154521,1750677040822,-151.875009,0.00020977,2]
[367154522,1750677040833,-151.0,0.00020977,2]
[367154523,1750677040842,-185.39991,0.00020977,2]
[367154524,1750677040853,-151.0,0.00020977,2]
[367154525,1750677040863,-151.0,0.00020977,2]
[367154526,1750677040873,-151.0,0.00020977,2]
[367154527,1750677040883,-1983.513076,0.00020977,2]
[367154528,1750677040893,-299.653636,0.00020977,2]
[367154529,1750677040903,-1983.513076,0.00020977,2]
[367154530,1750677040913,-151.0,0.00020977,2]
[367154531,1750677040923,-299.653636,0.00020977,2]
[367154532,1750677040933,-151.0,0.00020977,2]
[367154533,1750677040943,-151.0,0.00020977,2]
[367154534,1750677040952,-282.96005,0.00020977,2]
[367154535,1750677040961,-481.717289,0.00020977,2]
[367154536,1750677040971,-481.717289,0.00020977,2]
[367154537,1750677040982,-679.042121,0.00020977,2]
[367154538,1750677040992,-679.042121,0.00020977,2]
[367154539,1750677041001,-151.0,0.00020977,2]
[367154540,1750677041010,-151.0,0.00020977,2]
[367154541,1750677041020,-151.0,0.00020977,2]
[367154542,1750677041030,-305.010561,0.00020977,2]
[367154543,1750677041039,-305.010561,0.00020977,2]
[367154544,1750677041049,-151.0,0.00020977,2]
[367154545,1750677041059,-151.0,0.00020977,2]
[367154546,1750677041069,-151.0,0.00020977,2]
[367154547,1750677041079,-151.0,0.00020984,2]
[367154548,1750677041088,-151.0,0.00020984,2]
[367154549,1750677041103,-2500.0,0.00020985,2]
[367154550,1750677041113,-1001.0092,0.00020985,2]
[367154551,1750677041123,-330.01369067,0.00020985,2]
[367154552,1750677041132,-779.80345,0.00020985,2]
[367154553,1750677041142,-779.80344,0.00020985,2]
[367154554,1750677041152,-151.0,0.00020985,2]
[367154555,1750677041162,-151.0,0.00020985,2]
[367154556,1750677041172,-151.0,0.00020985,2]
[367154557,1750677041182,-1983.513076,0.00020985,2]
[367154558,1750677041192,-299.653636,0.00020985,2]
[367154559,1750677041202,-1983.513076,0.00020985,2]
[367154560,1750677041212,-299.653636,0.00020985,2]
[367154561,1750677041222,-153.967431,0.00020985,2]
[367154562,1750677041231,-481.717289,0.00020985,2]
[367154563,1750677041241,-481.717289,0.00020985,2]
[367154564,1750677041251,-153.967561,0.00020986,2]
[367154565,1750677041261,-156.044537,0.00020986,2]
[367154566,1750677041271,-153.586799,0.00020986,2]
[367154567,1750677041282,-180.189298,0.00020986,2]
[367154568,1750677041292,-151.0,0.00020986,2]
[367154569,1750677041302,-154.971412,0.00020986,2]
[367154570,1750677041312,-152.15654,0.00020986,2]
[367154571,1750677041322,-151.0,0.00020986,2]
[367154572,1750677041332,-151.0,0.00020986,2]
[367154573,1750677041342,-152.614327,0.00020986,2]
[367154574,1750677041352,-154.100137,0.00020986,2]
[367154575,1750677041362,-191.255317,0.00020986,2]
[367154576,1750677041373,-151.0,0.00020986,2]
[367154577,1750677041383,-151.521118,0.00020986,2]
[367154578,1750677041393,-151.0,0.00020986,2]
[367154579,1750677041404,-151.0,0.00020986,2]
[367154580,1750677041417,-151.0,0.00020986,2]
[367154581,1750677041427,-151.0,0.00020986,2]
[367154582,1750677041437,-151.0,0.00020986,2]
[367154583,1750677041447,-176.746423,0.00020986,2]
[367154584,1750677041457,-151.0,0.00020986,2]
[367154585,1750677041467,-176.746423,0.00020986,2]
[367154586,1750677041476,-151.0,0.00020986,2]
[367154587,1750677041486,-153.654294,0.00020986,2]
[367154588,1750677041497,-151.0,0.00020986,2]
[367154589,1750677041507,-151.0,0.00020986,2]
[367154590,1750677041518,-151.0,0.00020986,2]
[367154591,1750677041528,-151.0,0.00020986,2]
[367154592,1750677041539,-156.71,0.00020986,2]
[367154593,1750677041549,-153.153522,0.00020991,2]
[367154594,1750677041559,-151.0,0.00020991,2]
[367154595,1750677041569,-151.0,0.00020991,2]
[367154596,1750677041579,-266.788178,0.00020991,2]
[367154597,1750677041589,-266.788178,0.00020991,2]
[367154598,1750677041599,-160.649019,0.00020991,2]
[367154599,1750677041609,-160.649019,0.00020991,2]
[367154600,1750677041620,-243.060928,0.00020991,2]
[367154601,1750677041630,-2500.0,0.00020991,2]
[367154602,1750677041648,-151.0,0.00021,2]
[367154603,1750677041658,-151.0,0.00021,2]
[367154604,1750677041668,-151.0,0.00021,2]
[367154605,1750677041678,-151.0,0.00021,2]
[367154606,1750677041690,-553.126101,0.00021,2]
[367154607,1750677041700,-151.0,0.00021,2]
[367154608,1750677041711,-151.0,0.00021,2]
[367154609,1750677041722,-500.0,0.00021,2]
[367154610,1750677041732,-500.0,0.00021,2]
[367154611,1750677041742,-152.147211,0.00021055,2]
[367154612,1750677041752,-203.138625,0.00021055,2]
[367154613,1750677041763,-151.0,0.00021055,2]
[367154614,1750677041772,-600.0,0.00021055,2]
[367154615,1750677041782,-600.0,0.00021055,2]
[367154616,1750677041792,-600.0,0.00021055,2]
[367154617,1750677041802,-238.97800025,0.00021055,2]
[367154618,1750677041813,-253.77641125,0.00021064,2]
[367154619,1750677041823,-417.0,0.000211,2]
[367154620,1750677041834,-2786.62910888,0.00021277,2]
[367154621,1750677041844,-207.64613,0.00021377,2]
[367154622,1750677041854,-151.0,0.00021377,2]
[367154623,1750677041864,-151.0,0.00021377,2]
[367154624,1750677041874,-151.0,0.00021377,2]
[367154625,1750677041885,-151.0,0.00021377,2]
[367154626,1750677041895,-1983.513076,0.00021377,2]
[367154627,1750677041904,-299.653636,0.00021377,2]
[367154628,1750677041914,-1983.513076,0.00021377,2]
[367154629,1750677041924,-299.653636,0.00021377,2]
[367154630,1750677041934,-481.717289,0.00021377,2]
[367154631,1750677041943,-481.717289,0.00021377,2]
[367154632,1750677041953,-679.042121,0.00021377,2]
[367154633,1750677041962,-679.042121,0.00021377,2]
[367154634,1750677041972,-151.0,0.00021377,2]
[367154635,1750677041981,-151.0,0.00021377,2]
[367154636,1750677041991,-151.0,0.00021377,2]
[367154637,1750677042002,-4504.0816069,0.00021377,2]
[367154638,1750677042011,-340.0,0.00021507,2]
[367154639,1750677042021,-600.0,0.00021555,2]
[367154640,1750677042030,-600.0,0.00021555,2]
[367154641,1750677042040,-600.0,0.00021555,2]
[367154642,1750677042050,-600.0,0.00021555,2]
[367154643,1750677042060,-600.0,0.00021555,2]
[367154644,1750677042070,-305.010561,0.00021555,2]
[367154645,1750677042079,-305.010561,0.00021555,2]
[367154646,1750677042089,-200.0,0.00021707,2]
[367154647,1750677042099,-2786.6291088,0.00021733,2]
[367154648,1750677042109,-152.123115,0.00021848,2]
[367154649,1750677042118,-256.868098,0.00021848,2]
[367154650,1750677042128,-151.0,0.00021848,2]
[367154651,1750677042137,-151.0,0.00021848,2]
[367154652,1750677042147,-151.0,0.00021848,2]
[367154653,1750677042157,-4504.0816069,0.00021877,2]
[367154654,1750677042166,-180.189298,0.00021884,2]
[367154655,1750677042176,-151.0,0.00021884,2]
[367154656,1750677042186,-151.0,0.00021884,2]
[367154657,1750677042199,-151.0,0.00021884,2]
[367154658,1750677042208,-151.0,0.00021884,2]
[367154659,1750677042218,-197.678213,0.00021884,2]
[367154660,1750677042227,-151.0,0.00021884,2]
[367154661,1750677042237,-268.281049,0.00021884,2]
[367154662,1750677042247,-151.0,0.00021884,2]
[367154663,1750677042257,-266.788178,0.00021884,2]
[367154664,1750677042267,-266.788178,0.00021884,2]
[367154665,1750677042277,-160.649019,0.00021884,2]
[367154666,1750677042287,-160.649019,0.00021884,2]
[367154667,1750677042297,-151.0,0.00021884,2]
[367154668,1750677042307,-151.0,0.00021884,2]
[367154669,1750677042317,-151.0,0.00021884,2]
[367154670,1750677042326,-176.746423,0.00021884,2]
[367154671,1750677042336,-176.746423,0.00021884,2]
[367154672,1750677042347,-151.0,0.00021884,2]
[367154673,1750677042356,-151.0,0.00021884,2]
[367154674,1750677042367,-151.0,0.00021884,2]
[367154675,1750677042376,-151.0,0.00021884,2]
[367154676,1750677042386,-151.0,0.00021936,7]
[367154677,1750677042396,-155.122973,0.00021936,7]
[367154678,1750677042406,-151.0,0.00021936,7]
[367154679,1750677042416,-151.0,0.00021936,7]
[367154680,1750677042426,-553.126101,0.00021936,7]
[367154681,1750677042436,-151.0,0.00021936,7]
[367154682,1750677042446,-151.0,0.00021936,7]
[367154683,1750677042455,-151.0,0.00021936,7]
[367154684,1750677042465,-151.0,0.00021936,7]
[367154685,1750677042475,-151.0,0.00021936,7]
[367154686,1750677042484,-226.712739,0.00021936,7]
[367154687,1750677042494,-1983.513076,0.00021936,7]
[367154688,1750677042504,-299.653636,0.00021936,7]
[367154689,1750677042514,-1983.513076,0.00021936,7]
[367154690,1750677042525,-299.653636,0.00021936,7]
[367154691,1750677042534,-481.717289,0.00021936,7]
[367154692,1750677042544,-481.717289,0.00021936,7]
[367154693,1750677042554,-679.042121,0.00021936,7]
[367154694,1750677042564,-679.042121,0.00021936,7]
[367154695,1750677042575,-204.0,0.00021951,4]
[367154697,1750677042585,-1680.0,0.0002199,2]
[367154698,1750677042595,-162.0,0.00022,2]
[367154699,1750677042604,-420.0,0.00022032,2]
[367154701,1750677042614,-151.0,0.00022045,7]
[367154703,1750677042624,-305.010561,0.00022045,7]
[367154705,1750677042636,-305.010561,0.00022045,7]
[367154706,1750677042647,-6429.35,0.00022045,2]
[367154707,1750677042656,-600.0,0.00022055,2]
[367154708,1750677042666,-419.48900013,0.00022055,2]